[Event "*** Titled Tuesday 3|2 Blitz"]
[Site "Chess.com"]
[Date "2016.05.03"]
[Round "2"]
[White "yurisolo"]
[Black "Schemato"]
[Result "1-0"]
[WhiteElo "2534"]
[BlackElo "2218"]
[TimeControl "180+2"]
[EndTime "11:23:46 PDT"]
[Termination "yurisolo won by resignation"]

1. e4 {[%clk 0:03:01.9]} 1... e6 {[%clk 0:03:00.4]} 2. d4 {[%clk 0:03:02.6]}
2... d5 {[%clk 0:02:59.7]} 3. Nc3 {[%clk 0:03:04.5]} 3... Nf6 {[%clk 0:02:59.6]}
4. e5 {[%clk 0:03:05.8]} 4... Nfd7 {[%clk 0:03:00.5]} 5. f4 {[%clk 0:03:07.4]}
5... c5 {[%clk 0:03:00.5]} 6. Nf3 {[%clk 0:03:08.6]} 6... Nc6 {[%clk 0:03:00.7]}
7. Be3 {[%clk 0:03:10.3]} 7... Be7 {[%clk 0:03:01.7]} 8. Qd2 {[%clk 0:03:11.2]}
8... O-O {[%clk 0:03:02.4]} 9. Be2 {[%clk 0:03:12.8]} 9... b6 {[%clk 0:03:02]}
10. O-O {[%clk 0:03:14.2]} 10... f5 {[%clk 0:03:02.2]} 11. exf6 {[%clk
0:03:14.1]} 11... Nxf6 {[%clk 0:02:57.7]} 12. Bb5 {[%clk 0:03:13.8]} 12... Bd7
{[%clk 0:02:51.2]} 13. Bxc6 {[%clk 0:03:13.4]} 13... Bxc6 {[%clk 0:02:51.7]} 14.
Ne5 {[%clk 0:03:15]} 14... Rc8 {[%clk 0:02:44.4]} 15. Rad1 {[%clk 0:03:14.2]}
15... Bd6 {[%clk 0:02:40.5]} 16. h3 {[%clk 0:03:10.9]} 16... Bxe5 {[%clk
0:02:29]} 17. fxe5 {[%clk 0:03:10.2]} 17... cxd4 {[%clk 0:02:14.9]} 18. Qxd4
{[%clk 0:03:05.2]} 18... Ne4 {[%clk 0:02:13.8]} 19. Nxe4 {[%clk 0:02:54.7]}
19... dxe4 {[%clk 0:02:13.9]} 20. Qd6 {[%clk 0:02:47.7]} 20... Rxf1+ {[%clk
0:01:58.6]} 21. Rxf1 {[%clk 0:02:47.3]} 21... Qe8 {[%clk 0:01:55.5]} 22. c4
{[%clk 0:02:36]} 22... Rd8 {[%clk 0:01:52.8]} 23. Qc7 {[%clk 0:02:36.8]} 23...
Qd7 {[%clk 0:01:49.3]} 24. Qxd7 {[%clk 0:02:37.3]} 24... Rxd7 {[%clk 0:01:49.5]}
25. Rc1 {[%clk 0:02:29.4]} 25... Kf7 {[%clk 0:01:34.8]} 26. Kf2 {[%clk
0:02:29.1]} 26... Ke8 {[%clk 0:01:30.9]} 27. b4 {[%clk 0:02:29.8]} 27... Rd3
{[%clk 0:01:28.7]} 28. b5 {[%clk 0:02:30.5]} 28... Bb7 {[%clk 0:01:17.1]} 29. c5
{[%clk 0:02:30.5]} 29... bxc5 {[%clk 0:01:12.9]} 30. Rxc5 {[%clk 0:02:30.3]}
30... Kd7 {[%clk 0:01:08.7]} 31. a4 {[%clk 0:02:24.9]} 31... Ra3 {[%clk
0:01:00]} 32. Rc4 {[%clk 0:02:26.1]} 32... a6 {[%clk 0:00:51.6]} 33. b6 {[%clk
0:02:08.6]} 33... Bd5 {[%clk 0:00:40.7]} 34. Rc7+ {[%clk 0:02:08.6]} 34... Kd8
{[%clk 0:00:41.1]} 35. Bg5+ {[%clk 0:02:05.6]} 35... Ke8 {[%clk 0:00:41.7]} 36.
b7 {[%clk 0:02:02]} 36... Bxb7 {[%clk 0:00:22.3]} 37. Rxb7 {[%clk 0:02:02.6]}
37... h6 {[%clk 0:00:22.4]} 38. Be3 {[%clk 0:01:53.8]} 38... Rxa4 {[%clk
0:00:19.8]} 39. Rxg7 {[%clk 0:01:53.8]} 39... Ra2+ {[%clk 0:00:20.3]} 40. Kg3
{[%clk 0:01:53.4]} 40... a5 {[%clk 0:00:20.5]} 41. Kf4 {[%clk 0:01:49.2]} 41...
a4 {[%clk 0:00:21.1]} 42. g4 {[%clk 0:01:49.6]} 42... Rh2 {[%clk 0:00:19.8]} 43.
Ra7 {[%clk 0:01:50.3]} 43... Rxh3 {[%clk 0:00:19.9]} 44. Rxa4 {[%clk 0:01:50.6]}
44... h5 {[%clk 0:00:20.7]} 45. gxh5 {[%clk 0:01:43.9]} 45... Rxh5 {[%clk
0:00:20.9]} 46. Rxe4 {[%clk 0:01:44.5]} 46... Rf5+ {[%clk 0:00:17.6]} 47. Kg4
{[%clk 0:01:45.1]} 47... Kd7 {[%clk 0:00:17.9]} 48. Bg5 {[%clk 0:01:45.9]} 48...
Rf1 {[%clk 0:00:17.9]} 49. Rd4+ {[%clk 0:01:44.9]} 49... Ke8 {[%clk 0:00:17.1]}
50. Rd8+ {[%clk 0:01:45.1]} 50... Kf7 {[%clk 0:00:17.1]} 51. Rd7+ {[%clk
0:01:46.2]} 51... Kg6 {[%clk 0:00:17.4]} 52. Bf6 {[%clk 0:01:46.8]} 52... Rg1+
{[%clk 0:00:13.9]} 53. Kf4 {[%clk 0:01:46.5]} 53... Rf1+ {[%clk 0:00:15.1]} 54.
Ke3 {[%clk 0:01:44.8]} 54... Kf5 {[%clk 0:00:15.4]} 55. Rg7 {[%clk 0:01:43.9]}
55... Re1+ {[%clk 0:00:03]} 56. Kd4 {[%clk 0:01:45]} 56... Rd1+ {[%clk
0:00:04.1]} 57. Kc5 {[%clk 0:01:46.5]} 57... Ra1 {[%clk 0:00:04.8]} 58. Rg5+
{[%clk 0:01:43.2]} 58... Ke4 {[%clk 0:00:05.7]} 59. Kd6 {[%clk 0:01:44.7]} 59...
Ra6+ {[%clk 0:00:05.8]} 60. Ke7 {[%clk 0:01:45.9]} 60... Kd5 {[%clk 0:00:07.7]}
61. Rg1 {[%clk 0:01:46.5]} 61... Ra7+ {[%clk 0:00:08.9]} 62. Kf8 {[%clk
0:01:48]} 62... Ke4 {[%clk 0:00:09.5]} 63. Re1+ {[%clk 0:01:47.3]} 63... Kf5
{[%clk 0:00:10.2]} 64. Be7 {[%clk 0:01:46.9]} 64... Rb7 {[%clk 0:00:10.6]} 65.
Kf7 {[%clk 0:01:47.8]} 65... Rd7 {[%clk 0:00:08.6]} 66. Ke8 {[%clk 0:01:46.2]}
66... Rb7 {[%clk 0:00:09.4]} 67. Bd6 {[%clk 0:01:45.8]} 67... Rh7 {[%clk
0:00:09.6]} 68. Rf1+ {[%clk 0:01:44.2]} 68... Ke4 {[%clk 0:00:10.3]} 69. Rf7
{[%clk 0:01:45.5]} 69... Rh8+ {[%clk 0:00:10.9]} 70. Ke7 {[%clk 0:01:46.6]}
70... Kd5 {[%clk 0:00:12.1]} 71. Rg7 {[%clk 0:01:45.1]} 71... Ra8 {[%clk
0:00:12.3]} 72. Kd7 {[%clk 0:01:43.6]} 72... Ra7+ {[%clk 0:00:13.1]} 73. Bc7
{[%clk 0:01:45.1]} 73... Rb7 {[%clk 0:00:12.4]} 74. Rg1 {[%clk 0:01:45.4]} 74...
Ra7 {[%clk 0:00:11.2]} 75. Rd1+ {[%clk 0:01:45.6]} 75... Kc5 {[%clk 0:00:10.9]}
76. Rd6 {[%clk 0:01:46.1]} 1-0

[Event "*** Titled Tuesday 3|2 Blitz"]
[Site "Chess.com"]
[Date "2016.05.03"]
[Round "2"]
[White "Anton_Demchenko"]
[Black "Spas_Kozhuharov"]
[Result "1-0"]
[WhiteElo "2645"]
[BlackElo "2468"]
[TimeControl "180+2"]
[EndTime "11:23:50 PDT"]
[Termination "Anton_Demchenko won on time"]

1. e4 {[%clk 0:03:01.9]} 1... c6 {[%clk 0:02:59.5]} 2. d4 {[%clk 0:03:02.1]}
2... d5 {[%clk 0:03:00.5]} 3. Nd2 {[%clk 0:03:03.3]} 3... dxe4 {[%clk
0:03:01.2]} 4. Nxe4 {[%clk 0:03:05.2]} 4... Nd7 {[%clk 0:03:02.7]} 5. Nf3 {[%clk
0:03:04.7]} 5... Ngf6 {[%clk 0:03:03.1]} 6. Ng3 {[%clk 0:03:06.3]} 6... e6
{[%clk 0:03:03.4]} 7. Bd3 {[%clk 0:03:07.8]} 7... Bd6 {[%clk 0:03:03.3]} 8. O-O
{[%clk 0:03:07.3]} 8... O-O {[%clk 0:03:04.7]} 9. c4 {[%clk 0:02:58.1]} 9... b6
{[%clk 0:03:05]} 10. b3 {[%clk 0:02:53.2]} 10... Bb7 {[%clk 0:03:05.3]} 11. Bb2
{[%clk 0:02:53.6]} 11... c5 {[%clk 0:03:05.5]} 12. Re1 {[%clk 0:02:49.7]} 12...
Qc7 {[%clk 0:03:04.5]} 13. Qe2 {[%clk 0:02:42.8]} 13... Rad8 {[%clk 0:02:54.6]}
14. Rad1 {[%clk 0:02:42.7]} 14... cxd4 {[%clk 0:02:46.1]} 15. Nxd4 {[%clk
0:02:32.2]} 15... Bb4 {[%clk 0:02:41.7]} 16. Rf1 {[%clk 0:02:33.5]} 16... Qf4
{[%clk 0:02:41.2]} 17. Bc2 {[%clk 0:02:01.1]} 17... Bc5 {[%clk 0:02:24.1]} 18.
a3 {[%clk 0:01:32.8]} 18... a5 {[%clk 0:02:24.1]} 19. Nf3 {[%clk 0:01:04.7]}
19... Bxf3 {[%clk 0:02:23.5]} 20. Qxf3 {[%clk 0:01:04.1]} 20... Qxf3 {[%clk
0:02:24.1]} 21. gxf3 {[%clk 0:01:06]} 21... Be7 {[%clk 0:01:30.4]} 22. Ne2
{[%clk 0:00:58]} 22... Nh5 {[%clk 0:01:21.9]} 23. Nd4 {[%clk 0:00:57.4]} 23...
Bf6 {[%clk 0:01:22.5]} 24. Ba1 {[%clk 0:00:46.7]} 24... Ne5 {[%clk 0:01:19.8]}
25. Be4 {[%clk 0:00:47.8]} 25... Nf4 {[%clk 0:01:17.8]} 26. Nb5 {[%clk
0:00:37.6]} 26... a4 {[%clk 0:01:03]} 27. Bxe5 {[%clk 0:00:31.9]} 27... Bxe5
{[%clk 0:01:03.5]} 28. bxa4 {[%clk 0:00:33.3]} 28... Rc8 {[%clk 0:01:00]} 29.
Rfe1 {[%clk 0:00:29.6]} 29... f6 {[%clk 0:00:54.4]} 30. Bd3 {[%clk 0:00:23.4]}
30... Nxd3 {[%clk 0:00:54]} 31. Rxd3 {[%clk 0:00:25.3]} 31... Rxc4 {[%clk
0:00:55.3]} 32. Re4 {[%clk 0:00:26.6]} 32... Rfc8 {[%clk 0:00:54.2]} 33. Rde3
{[%clk 0:00:22.2]} 33... Kf7 {[%clk 0:00:47.7]} 34. Rxe5 {[%clk 0:00:23.4]}
34... fxe5 {[%clk 0:00:48.8]} 35. Nd6+ {[%clk 0:00:24.6]} 35... Kf6 {[%clk
0:00:50.1]} 36. Nxc8 {[%clk 0:00:25.7]} 36... Rxc8 {[%clk 0:00:51.7]} 37. Rb3
{[%clk 0:00:27.3]} 37... Rc6 {[%clk 0:00:47.9]} 38. Kg2 {[%clk 0:00:27.5]} 38...
g5 {[%clk 0:00:47.6]} 39. Rb5 {[%clk 0:00:28]} 39... Kf5 {[%clk 0:00:45.4]} 40.
a5 {[%clk 0:00:28.3]} 40... bxa5 {[%clk 0:00:46.3]} 41. Rxa5 {[%clk 0:00:30.2]}
41... h5 {[%clk 0:00:44.5]} 42. h3 {[%clk 0:00:30.7]} 42... Rc3 {[%clk
0:00:43.3]} 43. a4 {[%clk 0:00:30.5]} 43... Ra3 {[%clk 0:00:42.7]} 44. Ra8
{[%clk 0:00:30.9]} 44... e4 {[%clk 0:00:42.2]} 45. fxe4+ {[%clk 0:00:30.3]}
45... Kxe4 {[%clk 0:00:43.3]} 46. a5 {[%clk 0:00:32.2]} 46... g4 {[%clk
0:00:38.8]} 47. hxg4 {[%clk 0:00:29.2]} 47... hxg4 {[%clk 0:00:40.7]} 48. a6
{[%clk 0:00:31.1]} 48... e5 {[%clk 0:00:39.6]} 49. a7 {[%clk 0:00:31]} 49... Ra1
{[%clk 0:00:19.6]} 50. Kg3 {[%clk 0:00:31]} 50... Rg1+ {[%clk 0:00:13.5]} 51.
Kh4 {[%clk 0:00:32.3]} 51... Rh1+ {[%clk 0:00:12.4]} 52. Kxg4 {[%clk 0:00:32.2]}
52... Rg1+ {[%clk 0:00:13.3]} 53. Kh3 {[%clk 0:00:32.6]} 53... Ra1 {[%clk
0:00:14.5]} 54. Kg2 {[%clk 0:00:33.2]} 54... Ra2 {[%clk 0:00:15.7]} 55. Kg3
{[%clk 0:00:34.4]} 55... Ra3+ {[%clk 0:00:16.6]} 56. Kg4 {[%clk 0:00:34.8]}
56... Ra5 {[%clk 0:00:15.4]} 57. f4 {[%clk 0:00:31.5]} 1-0

[Event "*** Titled Tuesday 3|2 Blitz"]
[Site "Chess.com"]
[Date "2016.05.03"]
[Round "2"]
[White "Sophiste2"]
[Black "Boryboy"]
[Result "1-0"]
[WhiteElo "2783"]
[BlackElo "2495"]
[TimeControl "180+2"]
[EndTime "11:23:59 PDT"]
[Termination "Sophiste2 won by resignation"]

1. Nf3 {[%clk 0:03:01.9]} 1... d5 {[%clk 0:03:00.1]} 2. g3 {[%clk 0:03:01.4]}
2... Nf6 {[%clk 0:02:57.2]} 3. Bg2 {[%clk 0:03:02.4]} 3... e6 {[%clk 0:02:57.9]}
4. O-O {[%clk 0:03:03.5]} 4... Be7 {[%clk 0:02:57.9]} 5. b3 {[%clk 0:03:04.5]}
5... a5 {[%clk 0:02:58.1]} 6. c4 {[%clk 0:03:01.1]} 6... O-O {[%clk 0:02:56.8]}
7. Nc3 {[%clk 0:02:59.7]} 7... c6 {[%clk 0:02:57.6]} 8. d4 {[%clk 0:02:58.1]}
8... Nbd7 {[%clk 0:02:57.7]} 9. Bb2 {[%clk 0:02:59]} 9... Rb8 {[%clk 0:02:48.7]}
10. Ne5 {[%clk 0:02:47.1]} 10... Nxe5 {[%clk 0:02:39.5]} 11. dxe5 {[%clk
0:02:49]} 11... Nd7 {[%clk 0:02:38.1]} 12. cxd5 {[%clk 0:02:49.9]} 12... exd5
{[%clk 0:02:38.7]} 13. e4 {[%clk 0:02:51]} 13... Nxe5 {[%clk 0:02:34.1]} 14.
exd5 {[%clk 0:02:52.1]} 14... Bg4 {[%clk 0:02:33.4]} 15. f3 {[%clk 0:02:47.4]}
15... Bf5 {[%clk 0:02:30.3]} 16. Ne4 {[%clk 0:02:37.4]} 16... Bxe4 {[%clk
0:02:11.9]} 17. fxe4 {[%clk 0:02:38]} 17... Bc5+ {[%clk 0:02:09]} 18. Kh1 {[%clk
0:02:39]} 18... Qe7 {[%clk 0:02:08]} 19. Qc2 {[%clk 0:02:19.7]} 19... Bd6 {[%clk
0:02:05.9]} 20. Rad1 {[%clk 0:02:19.5]} 20... c5 {[%clk 0:02:06.2]} 21. Qd2
{[%clk 0:01:56.7]} 21... a4 {[%clk 0:02:01.1]} 22. bxa4 {[%clk 0:01:56.5]} 22...
Nc4 {[%clk 0:01:59.9]} 23. Qc3 {[%clk 0:01:56.6]} 23... Nxb2 {[%clk 0:02:01.1]}
24. Qxb2 {[%clk 0:01:57]} 24... Ra8 {[%clk 0:02:02.6]} 25. Qb5 {[%clk
0:01:56.9]} 25... Ra7 {[%clk 0:01:56.8]} 26. Rfe1 {[%clk 0:01:53.4]} 26... f6
{[%clk 0:01:57.9]} 27. Bh3 {[%clk 0:01:54]} 27... Rfa8 {[%clk 0:01:59.2]} 28.
Rb1 {[%clk 0:01:49.8]} 28... Rxa4 {[%clk 0:01:52.1]} 29. Be6+ {[%clk 0:01:50.9]}
29... Kh8 {[%clk 0:01:51.7]} 30. Qxb7 {[%clk 0:01:52.2]} 30... Qxb7 {[%clk
0:01:51.7]} 31. Rxb7 {[%clk 0:01:54.1]} 31... Rxa2 {[%clk 0:01:52.3]} 32. Rb6
{[%clk 0:01:38.8]} 32... Rd8 {[%clk 0:01:29.4]} 33. Reb1 {[%clk 0:01:39.4]}
33... g6 {[%clk 0:01:26.3]} 34. Rb7 {[%clk 0:01:40.5]} 34... Ra4 {[%clk
0:00:57.5]} 35. Rf7 {[%clk 0:01:38.2]} 35... Rb4 {[%clk 0:00:58.9]} 36. Ra1
{[%clk 0:01:37.9]} 36... Bb8 {[%clk 0:00:38.3]} 37. Rc1 {[%clk 0:01:22.9]} 37...
Rxe4 {[%clk 0:00:38.9]} 38. Rxc5 {[%clk 0:01:22.4]} 38... Be5 {[%clk 0:00:39.7]}
39. Rb5 {[%clk 0:01:23.2]} 39... Re1+ {[%clk 0:00:27.4]} 40. Kg2 {[%clk
0:01:24.5]} 40... Re2+ {[%clk 0:00:28.6]} 41. Kh3 {[%clk 0:01:21.7]} 41... Rb2
{[%clk 0:00:30]} 42. Rxb2 {[%clk 0:01:08]} 42... Bxb2 {[%clk 0:00:31.9]} 43. g4
{[%clk 0:01:09.5]} 43... Be5 {[%clk 0:00:32.8]} 44. Kg2 {[%clk 0:01:08.8]} 44...
Rb8 {[%clk 0:00:34.1]} 45. h4 {[%clk 0:01:09.7]} 45... Rb2+ {[%clk 0:00:28.6]}
46. Kf3 {[%clk 0:01:10.8]} 46... Rb3+ {[%clk 0:00:30.3]} 47. Ke2 {[%clk
0:01:10.7]} 47... Rb4 {[%clk 0:00:25.5]} 48. h5 {[%clk 0:01:01.8]} 48... gxh5
{[%clk 0:00:24.4]} 49. gxh5 {[%clk 0:01:03.7]} 49... h6 {[%clk 0:00:25.9]} 50.
Rd7 {[%clk 0:01:03.4]} 50... Rh4 {[%clk 0:00:22.8]} 51. d6 {[%clk 0:01:00]}
51... Bxd6 {[%clk 0:00:21.7]} 52. Rxd6 {[%clk 0:01:01.9]} 52... Rxh5 {[%clk
0:00:23.3]} 53. Kf3 {[%clk 0:01:00.1]} 53... Re5 {[%clk 0:00:24.5]} 54. Kf4
{[%clk 0:01:00.7]} 54... Kg7 {[%clk 0:00:25.9]} 55. Rd7+ {[%clk 0:00:59]} 55...
Kh8 {[%clk 0:00:26.4]} 56. Bf5 {[%clk 0:00:59.7]} 56... Kg8 {[%clk 0:00:26.4]}
57. Bg6 {[%clk 0:00:59.5]} 57... Rg5 {[%clk 0:00:26.6]} 58. Bf7+ {[%clk
0:01:00.3]} 58... Kf8 {[%clk 0:00:27.6]} 59. Bc4 {[%clk 0:00:59.9]} 59... Rc5
{[%clk 0:00:26.6]} 60. Be6 {[%clk 0:00:59.4]} 60... Re5 {[%clk 0:00:27.3]} 61.
Rf7+ {[%clk 0:00:57.9]} 61... Ke8 {[%clk 0:00:27.6]} 62. Rxf6 {[%clk 0:00:59.6]}
62... Rh5 {[%clk 0:00:21]} 63. Rf7 {[%clk 0:00:47.5]} 63... Rh2 {[%clk
0:00:21.5]} 64. Rh7 {[%clk 0:00:48.5]} 64... Kd8 {[%clk 0:00:20.2]} 65. Ke5
{[%clk 0:00:48.8]} 65... Rd2 {[%clk 0:00:12.9]} 66. Bd5 {[%clk 0:00:49.8]} 66...
Kc8 {[%clk 0:00:11.9]} 67. Kd6 {[%clk 0:00:50.8]} 67... Kb8 {[%clk 0:00:11.6]}
68. Rb7+ {[%clk 0:00:51.8]} 68... Kc8 {[%clk 0:00:12.9]} 69. Ra7 {[%clk
0:00:53]} 69... Rb2 {[%clk 0:00:13.6]} 70. Rh7 {[%clk 0:00:52.5]} 70... Kb8
{[%clk 0:00:14.1]} 71. Rh8+ {[%clk 0:00:53.7]} 71... Ka7 {[%clk 0:00:15.7]} 72.
Ra8+ {[%clk 0:00:55.5]} 72... Kb6 {[%clk 0:00:17.4]} 73. Rb8+ {[%clk 0:00:57.3]}
73... Ka5 {[%clk 0:00:19.1]} 74. Rxb2 {[%clk 0:00:59.2]} 1-0

[Event "*** Titled Tuesday 3|2 Blitz"]
[Site "Chess.com"]
[Date "2016.05.03"]
[Round "2"]
[White "simonachess"]
[Black "Carolina-moon"]
[Result "1/2-1/2"]
[WhiteElo "2141"]
[BlackElo "2047"]
[TimeControl "180+2"]
[EndTime "11:24:00 PDT"]
[Termination "Game drawn by repetition"]

1. d4 {[%clk 0:02:47.5]} 1... f5 {[%clk 0:03:00.3]} 2. c4 {[%clk 0:02:48]} 2...
Nf6 {[%clk 0:03:01.2]} 3. Nc3 {[%clk 0:02:48.4]} 3... g6 {[%clk 0:03:02.4]} 4.
Bf4 {[%clk 0:02:41.4]} 4... Bg7 {[%clk 0:03:01.5]} 5. e3 {[%clk 0:02:42.3]} 5...
d6 {[%clk 0:03:02]} 6. h3 {[%clk 0:02:43.5]} 6... O-O {[%clk 0:03:02.1]} 7. Nf3
{[%clk 0:02:44.8]} 7... c6 {[%clk 0:02:54.6]} 8. Be2 {[%clk 0:02:43.1]} 8... Ne4
{[%clk 0:02:55.4]} 9. Qc2 {[%clk 0:02:24.5]} 9... Qa5 {[%clk 0:02:53.2]} 10. O-O
{[%clk 0:02:00.8]} 10... e5 {[%clk 0:02:52.3]} 11. Bh2 {[%clk 0:01:46.9]} 11...
Nxc3 {[%clk 0:02:48.8]} 12. Qxc3 {[%clk 0:01:47.8]} 12... Qxc3 {[%clk
0:02:44.6]} 13. bxc3 {[%clk 0:01:49.7]} 13... f4 {[%clk 0:02:32.1]} 14. exf4
{[%clk 0:01:35.8]} 14... exf4 {[%clk 0:02:32.8]} 15. Bd3 {[%clk 0:01:34.2]}
15... Bf5 {[%clk 0:02:20.9]} 16. Bxf5 {[%clk 0:01:33.6]} 16... Rxf5 {[%clk
0:02:21.8]} 17. Rfe1 {[%clk 0:01:35.2]} 17... Kf8 {[%clk 0:02:15.6]} 18. Re6
{[%clk 0:01:30.7]} 18... d5 {[%clk 0:01:55.4]} 19. c5 {[%clk 0:01:28.1]} 19...
Nd7 {[%clk 0:01:52.2]} 20. Rae1 {[%clk 0:01:28.9]} 20... Nf6 {[%clk 0:01:47.8]}
21. R1e5 {[%clk 0:01:10.2]} 21... Rxe5 {[%clk 0:01:20.5]} 22. Nxe5 {[%clk
0:01:12.1]} 22... g5 {[%clk 0:01:11.9]} 23. h4 {[%clk 0:01:09]} 23... h6 {[%clk
0:01:11]} 24. hxg5 {[%clk 0:01:10.1]} 24... hxg5 {[%clk 0:01:12.2]} 25. f3
{[%clk 0:00:59.5]} 25... Re8 {[%clk 0:01:06.6]} 26. Rd6 {[%clk 0:00:36.8]} 26...
Ke7 {[%clk 0:00:39.8]} 27. g3 {[%clk 0:00:33]} 27... Nh5 {[%clk 0:00:28.2]} 28.
Rd7+ {[%clk 0:00:30.4]} 28... Kf8 {[%clk 0:00:23.9]} 29. gxf4 {[%clk 0:00:25.6]}
29... gxf4 {[%clk 0:00:22.2]} 30. Ng6+ {[%clk 0:00:24.7]} 30... Kg8 {[%clk
0:00:23.3]} 31. Nxf4 {[%clk 0:00:25.5]} 31... Nxf4 {[%clk 0:00:20.1]} 32. Bxf4
{[%clk 0:00:27.4]} 32... Re2 {[%clk 0:00:18.5]} 33. Rxb7 {[%clk 0:00:25.2]}
33... Rxa2 {[%clk 0:00:19.2]} 34. Rc7 {[%clk 0:00:12.4]} 34... Rc2 {[%clk
0:00:13.6]} 35. Be5 {[%clk 0:00:06.3]} 35... Bxe5 {[%clk 0:00:11.3]} 36. dxe5
{[%clk 0:00:08.2]} 36... Rxc3 {[%clk 0:00:12.6]} 37. Rxc6 {[%clk 0:00:09.9]}
37... a5 {[%clk 0:00:12.7]} 38. Ra6 {[%clk 0:00:10.8]} 38... Rxc5 {[%clk
0:00:12.9]} 39. Kf2 {[%clk 0:00:12.5]} 39... Kf7 {[%clk 0:00:13.2]} 40. e6+
{[%clk 0:00:13.3]} 40... Ke7 {[%clk 0:00:14]} 41. f4 {[%clk 0:00:15.2]} 41... d4
{[%clk 0:00:13]} 42. Kf3 {[%clk 0:00:16.9]} 42... Rd5 {[%clk 0:00:11.5]} 43. Ke4
{[%clk 0:00:18.3]} 43... Rd8 {[%clk 0:00:11.3]} 44. f5 {[%clk 0:00:19.4]} 44...
d3 {[%clk 0:00:11.3]} 45. Rxa5 {[%clk 0:00:21.1]} 45... d2 {[%clk 0:00:12]} 46.
Ra7+ {[%clk 0:00:22.8]} 46... Kf6 {[%clk 0:00:12.1]} 47. Rf7+ {[%clk 0:00:24]}
47... Kg5 {[%clk 0:00:13]} 48. e7 {[%clk 0:00:25.5]} 48... d1=Q {[%clk
0:00:12.6]} 49. exd8=Q+ {[%clk 0:00:26.4]} 49... Qxd8 {[%clk 0:00:13.4]} 50.
Rg7+ {[%clk 0:00:28.1]} 50... Kf6 {[%clk 0:00:14]} 51. Rg6+ {[%clk 0:00:29.2]}
51... Kf7 {[%clk 0:00:15]} 52. Re6 {[%clk 0:00:30.7]} 52... Qa8+ {[%clk
0:00:15]} 53. Ke5 {[%clk 0:00:32.3]} 53... Qa5+ {[%clk 0:00:14.3]} 54. Ke4
{[%clk 0:00:33.8]} 54... Qb4+ {[%clk 0:00:15.2]} 55. Ke5 {[%clk 0:00:35.4]}
55... Qc5+ {[%clk 0:00:16.6]} 56. Ke4 {[%clk 0:00:36.9]} 56... Qc4+ {[%clk
0:00:17.8]} 57. Ke5 {[%clk 0:00:38.5]} 57... Qg4 {[%clk 0:00:17.5]} 58. Rf6+
{[%clk 0:00:39.3]} 58... Ke7 {[%clk 0:00:18.6]} 59. Re6+ {[%clk 0:00:40.7]}
59... Kd7 {[%clk 0:00:19.8]} 60. Rd6+ {[%clk 0:00:42.3]} 60... Kc7 {[%clk
0:00:21.1]} 61. Re6 {[%clk 0:00:43.9]} 61... Qg3+ {[%clk 0:00:20.1]} 62. Ke4
{[%clk 0:00:45.2]} 62... Qg4+ {[%clk 0:00:20.3]} 63. Ke5 {[%clk 0:00:46.7]}
63... Qg3+ {[%clk 0:00:19]} 64. Ke4 {[%clk 0:00:48.1]} 64... Qe1+ {[%clk
0:00:17.9]} 65. Kd5 {[%clk 0:00:49.2]} 65... Qd2+ {[%clk 0:00:18.8]} 66. Ke5
{[%clk 0:00:50.9]} 66... Qe2+ {[%clk 0:00:19.8]} 67. Kd5 {[%clk 0:00:52.6]}
67... Qd3+ {[%clk 0:00:20.6]} 68. Ke5 {[%clk 0:00:54.3]} 68... Qc3+ {[%clk
0:00:21.9]} 69. Kd5 {[%clk 0:00:55.6]} 69... Kd7 {[%clk 0:00:23]} 70. Rd6+
{[%clk 0:00:56.2]} 70... Ke7 {[%clk 0:00:23.9]} 71. Re6+ {[%clk 0:00:57.8]}
71... Kf7 {[%clk 0:00:25.2]} 72. Kd6 {[%clk 0:00:58.2]} 72... Qc4 {[%clk
0:00:24.2]} 73. Ke5 {[%clk 0:00:59.4]} 73... Qc5+ {[%clk 0:00:24.1]} 74. Ke4
{[%clk 0:01:00.9]} 74... Qc4+ {[%clk 0:00:24.7]} 75. Ke5 {[%clk 0:01:02.5]}
75... Qc3+ {[%clk 0:00:25.3]} 76. Ke4 {[%clk 0:01:04.1]} 76... Qc4+ {[%clk
0:00:25.1]} 77. Ke5 {[%clk 0:01:05.5]} 1/2-1/2